[Event "34th Pula Open 2022"]
[Site "Pula"]
[Date "2022.06.18"]
[Round "1.6"]
[White "Marjanovic, Annamaria"]
[Black "Mrkaljevic, Jakub"]
[Result "1-0"]
[ECO "A25"]
[WhiteElo "2353"]
[BlackElo "1933"]
[Annotator "TA"]
[PlyCount "135"]
[EventDate "2022.06.18"]
[EventType "swiss"]
[EventCountry "CRO"]
[SourceTitle "playchess.com"]
[Source "ChessBase"]
[SourceQuality "1"]
[TimeControl "5400+30"]

{[%evp 10,135,17,8,27,33,33,23,45,19,43,42,44,39,70,64,127,100,118,29,67,41,47,0,0,0,0,-2,-1,-16,7,0,12,20,31,10,12,0,27,0,0,0,39,12,8,4,22,5,78,60,58,28,35,29,100,118,171,148,210,224,247,240,239,256,293,295,360,292,272,187,300,235,245,157,467,329,306,259,379,236,250,202,307,300,525,530,518,266,626,545,533,390,386,386,386,373,352,329,443,324,287,281,262,168,327,327,1663,1098,2166,1243,1159,1160,941,902,871,0,885,834,29974,29974,29985,1978,2033,1293,29985,29986,29991,29992]} 1. c4 {[%emt 0:00:05]} e5 {[%emt 0:00:13]} 2. g3 {[%emt 0:00:07]} Nc6 {[%emt 0:00:24]} 3. Bg2 {[%emt 0:00:11]} Nf6 {[%emt 0:01:03]} 4. Nc3 {[%emt 0:00:25]} Bc5 {[%emt 0:01:36]} 5. e3 {[%emt 0:00:11]} d6 {[%emt 0:00:21]} 6. Nge2 {[%emt 0:01:17]} a6 {[%emt 0:00:37] A25: English Opening vs King's Indian with ...Nc6 but without early d3.} 7. O-O {[%emt 0:01:30]} O-O {[%emt 0:00:09]} 8. d4 {[%emt 0:03:08]} Bb6 {[%emt 0:00:11] White has an edge.} 9. a3 {[%emt 0:03:00]} Bg4 {[%emt 0:04:32]} 10. h3 {[%emt 0:03:32]} Bd7 {[%emt 0:00:54]} 11. b4 {[%emt 0:01:12] [#]} Qc8 $146 {[%emt 0:00:11]} ({Predecessor:} 11... Re8 12. Bb2 Ba7 13. c5 dxc5 14. dxc5 Qc8 15. Kh2 Bf5 16. e4 Rd8 17. Qc1 Be6 {1-0 (31) Sacripanti,G (2320)-Paessler,H (2138) ICCF email 2017}) 12. Kh2 {[%emt 0:02:11]} Ne7 {[%emt 0:01:36]} (12... Re8 $14) 13. c5 {[%emt 0:05:05]} Ba7 {[%emt 0:00:09]} 14. Bb2 {[%emt 0:04:01]} ({Better is} 14. dxe5 $1 $16 dxe5 15. f4) 14... Bc6 {[%emt 0:00:22]} 15. d5 {[%emt 0:03:39]} Bd7 {[%emt 0:00:09]} 16. cxd6 {[%emt 0:00:42]} (16. f4 $14) 16... cxd6 $11 {[%emt 0:00:02]} 17. Rc1 {[%emt 0:02:28][%cal Oc3b5]} Qe8 {[%emt 0:00:01]} 18. Qb3 {[%emt 0:06:14]} b5 {[%emt 0:00:46]} 19. Nb1 {[%emt 0:01:53]} Bb6 {[%emt 0:00:51]} 20. Nd2 {[%emt 0:09:20]} Nf5 {[%emt 0:00:56]} 21. e4 {[%emt 0:05:15]} Ne7 {[%emt 0:00:20]} 22. f4 {[%emt 0:00:28]} Ng6 {[%emt 0:02:33]} 23. Qd3 {[%emt 0:08:15]} Rc8 {[%emt 0:00:38]} 24. Rxc8 {[%emt 0:01:06]} Qxc8 {[%emt 0:00:25]} 25. fxe5 {[%emt 0:06:22]} dxe5 {[%emt 0:00:40]} 26. Rc1 {[%emt 0:00:46]} Qd8 {[%emt 0:00:46]} 27. Nb3 {[%emt 0:01:28]} Ne8 {[%emt 0:01:17]} 28. Nc5 {[%emt 0:02:50]} Bc8 {[%emt 0:00:07]} (28... Nd6 $11 {keeps the balance.}) 29. a4 $16 {[%emt 0:00:52] 0x0.001763550953dp-1022s more active pieces.} Nd6 {[%emt 0:00:08]} 30. axb5 {[%emt 0:00:44]} axb5 {[%emt 0:01:00]} 31. Nc3 $36 {[%emt 0:01:13][%mdl 2048] White has good play.} Qe8 {[%emt 0:01:53]} (31... Bd7 $11) 32. Bf1 {[%emt 0:02:13] White now steadily converts the win.} f5 {[%emt 0:02:05]} (32... Nc4 $16) 33. Nxb5 $18 {[%emt 0:02:51]} Nxb5 {[%emt 0:00:26]} (33... Nxe4 $16 34. d6 (34. Nxe4 $2 fxe4 35. Qc2 Qd7 $19) 34... Nf6) 34. Qxb5 {[%emt 0:00:11]} Qd8 {[%emt 0:00:15]} 35. exf5 {[%emt 0:03:15]} Bxf5 {[%emt 0:00:35]} 36. Bg2 {[%emt 0:01:28]} Ba7 {[%emt 0:02:44][%cal Of5h3]} 37. Rf1 {[%emt 0:03:20]} Qe7 {[%emt 0:04:30]} 38. Qc4 {[%emt 0:03:37] Strongly threatening d6+.} Kh8 {[%emt 0:01:42]} 39. Ne4 {[%emt 0:02:36]} Bb8 {[%emt 0:02:26]} (39... Bxe4 {was necessary.} 40. Qxe4 Rxf1 41. Bxf1 Qf8) 40. Qc5 {[%emt 0:01:50]} Qd8 {[%emt 0:00:57]} 41. h4 {[%emt 0:02:43]} h5 $2 {[%emt 0:05:48]} (41... Bxe4 $16 {is tougher.} 42. Rxf8+ Nxf8) 42. Ng5 {[%emt 0:01:50]} Bd6 {[%emt 0:01:32]} 43. Qa7 {[%emt 0:00:44]} Qe8 {[%emt 0:03:28] Inhibits Nf7+.} (43... Qe7 {is a better defense.} 44. Qxe7 Nxe7) 44. Qb6 {[%emt 0:00:55]} Qe7 {[%emt 0:00:47]} 45. b5 {[%emt 0:00:54][%cal Ob2a3]} Kg8 {[%emt 0:07:12]} (45... e4 $142) 46. Qe3 {[%emt 0:01:20]} Bd7 $2 {[%emt 0:02:19]} (46... e4 {keeps fighting.} 47. Nxe4 Ne5 48. Bxe5 Qxe5) 47. Rxf8+ {[%emt 0:00:13]} Nxf8 {[%emt 0:00:15]} 48. Qe2 {[%emt 0:00:30] b6 is the strong threat.} g6 $2 {[%emt 0:00:23]} (48... Nh7) 49. Ne4 {[%emt 0:00:35]} Bg4 {[%emt 0:01:13]} 50. Qe3 {[%emt 0:00:54]} Nd7 {[%emt 0:00:16]} 51. Nxd6 {[%emt 0:02:32]} Qxd6 {[%emt 0:00:18]} 52. Ba3 {[%emt 0:00:09] Inhibits Qb4.} Qc7 {[%emt 0:01:04]} 53. Qb3 {[%emt 0:01:19] Intending d6+ and mate.} Qb6 {[%emt 0:00:49]} 54. d6+ {[%emt 0:00:44]} Kg7 {[%emt 0:00:02]} 55. Qd5 $1 {[%emt 0:00:35]} Qe3 {[%emt 0:00:20]} 56. Bb2 {[%emt 0:00:35][%cal Ob5b6]} Bf5 $2 {[%emt 0:00:48]} (56... g5) 57. b6 $1 {[%emt 0:00:41][%cal Bb5b6,Bb6b7][%mdl 32] Threatens to win with b7.} Kf6 $2 {[%emt 0:02:24]} (57... Qe2) 58. b7 {[%emt 0:00:30]} Qb6 {[%emt 0:00:09] Inhibits Qa5.} 59. Bc1 {[%emt 0:00:31] Bg5+ would kill now.} Be6 {[%emt 0:02:32]} 60. Bg5+ {[%emt 0:00:05]} Kf7 {[%emt 0:00:42]} 61. Qf3+ {[%emt 0:00:23]} Bf5 {[%emt 0:00:25]} 62. Qd5+ {[%emt 0:01:02]} Be6 $1 {[%emt 0:00:42]} 63. Qd3 {[%emt 0:00:06]} Bf5 {[%emt 0:01:47]} 64. Qc4+ {[%emt 0:00:06]} Kg7 {[%emt 0:03:12] [#]} 65. Qc7 {[%emt 0:00:19]} (65. Bh6+ $142 $1 {[%mdl 512]} Kh7 {[#]} (65... Kxh6 66. Qg8) 66. Bf8 $1 {[%mdl 512]} Kh8 67. Qf7 Nxf8 68. Qxf8+ Kh7 69. b8=Q Qxb8 70. Qxb8) 65... Qb4 {[%emt 0:00:36]} 66. Be3 {[%emt 0:00:44] And now Ba7 would win. A strong pair of Bishops.} Qb2 {[%emt 0:02:19] [#]} 67. Bb6 $1 {[%emt 0:00:43][%mdl 512]} Be4 {[%emt 0:01:14]} (67... Kf8 68. b8=Q+) 68. Qxd7+ {[%emt 0:00:15] Weighted Error Value: White=0.31/Black=0.51} 1-0

[Event "34th Pula Open 2022"]
[Site "Pula"]
[Date "2022.06.18"]
[Round "1.7"]
[White "Marjanovic, Alex"]
[Black "Maki-Uuro, Miikka"]
[Result "0-1"]
[ECO "A43"]
[WhiteElo "1924"]
[BlackElo "2332"]
[Annotator "TA"]
[PlyCount "66"]
[EventDate "2022.06.18"]
[EventType "swiss"]
[EventCountry "CRO"]
[SourceTitle "playchess.com"]
[Source "ChessBase"]
[SourceQuality "1"]
[TimeControl "5400+30"]

{[%evp 9,66,-8,0,-1,16,-45,-47,-62,-4,-6,21,-84,-83,-89,-40,-41,-6,-81,-72,-81,-31,-55,-23,-21,0,-23,-20,-29,-19,-23,-23,-19,-28,-117,-95,-100,-70,-108,-63,-109,-114,-222,-110,-153,-85,-117,-124,-271,-279,-440,-435,-416,-344,-315,-314,-440,-417,-29995,-29996]} 1. d4 {[%emt 0:00:05]} Nf6 {[%emt 0:00:08]} 2. Nf3 {[%emt 0:00:11]} c5 {[%emt 0:00:41]} 3. d5 {[%emt 0:00:22]} d6 {[%emt 0:01:41]} 4. Bg5 {[%emt 0:01:16]} g6 {[%emt 0:06:31]} 5. Bxf6 {[%emt 0:01:23]} exf6 {[%emt 0:00:11][%cal Be7f6,Bf6f5,Bf5e4][%mdl 32]} 6. e4 {[%emt 0:00:20] [#] A43: Schmid Benoni.} Qb6 $146 {[%emt 0:07:12]} ({Predecessor:} 6... Bg7 7. Bb5+ Nd7 8. c3 O-O 9. O-O a6 10. Bd3 b5 11. a4 Rb8 12. axb5 axb5 {½-½ (29) Carradori,D-Scuderi,D (2281) ICCF email 2011}) 7. b3 {[%emt 0:05:45]} ({White should play} 7. Nbd2 $11) 7... Bg7 {[%emt 0:03:31] Threatens to win with ...f5.} ({Don't do} 7... Qb4+ 8. Nbd2 $11) 8. Nbd2 {[%emt 0:03:07] Black is slightly better.} O-O {[%emt 0:03:00]} (8... f5 $15 9. Rc1 fxe4 10. Nxe4 Bf5) 9. Bd3 $11 {[%emt 0:02:43]} f5 {[%emt 0:03:17] [#]} 10. O-O {[%emt 0:03:26] [#]} fxe4 $1 $17 {[%emt 0:01:54]} 11. Nxe4 {[%emt 0:00:11]} Bf5 {[%emt 0:08:36]} (11... f5 $17 12. Neg5 Bxa1 13. Qxa1 Qd8) 12. Rb1 $15 {[%emt 0:02:44]} Nd7 {[%emt 0:03:22]} (12... Bxe4 $5 13. Bxe4 Nd7 $11) 13. Nh4 {[%emt 0:11:36]} (13. Neg5 $11) 13... Bxe4 $17 {[%emt 0:02:10]} 14. Bxe4 {[%emt 0:01:14]} c4 {[%emt 0:05:02]} (14... Qa5 $17) 15. bxc4 $15 {[%emt 0:03:02]} Qd8 {[%emt 0:01:37]} 16. Nf3 {[%emt 0:00:24][%cal Bh4f3,Bf3d2,Bd2b3][%mdl 32]} Nc5 {[%emt 0:00:14]} 17. Bd3 {[%emt 0:00:16]} Qa5 {[%emt 0:02:14]} 18. Nd2 {[%emt 0:00:23]} Qxa2 {[%emt 0:02:07]} 19. Nb3 {[%emt 0:01:12]} Nxd3 {[%emt 0:21:59]} 20. Qxd3 {[%emt 0:07:20]} Rfc8 {[%emt 0:00:35][%cal Ob7b5]} 21. c5 {[%emt 0:01:31]} (21. Nd2 $11 {remains equal.}) 21... dxc5 $17 {[%emt 0:04:26] And now ...c4 would win.} 22. c4 {[%emt 0:00:32]} Qa4 {[%emt 0:03:34][%cal Ob7b5]} 23. Rfe1 {[%emt 0:03:26]} Qd7 {[%emt 0:00:37][%cal Ob7b5]} 24. Qe3 {[%emt 0:01:02]} (24. g3 $15) 24... b6 {[%emt 0:00:40]} 25. Qe7 {[%emt 0:00:42]} (25. Qd3 $17) 25... Rc7 {[%emt 0:01:56]} (25... Qxe7 $19 {is more deadly.} 26. Rxe7 Re8 27. Rxe8+ Rxe8) 26. Qg5 {[%emt 0:02:03]} Re8 {[%emt 0:01:05]} ({Better is} 26... a5 {White must now prevent ...a4.} 27. Nd2 a4) 27. Rxe8+ {[%emt 0:00:50]} Qxe8 {[%emt 0:00:05]} 28. Rd1 {[%emt 0:00:25] White does not recover from this.} (28. Nd2 $17) 28... Re7 $19 {[%emt 0:01:06] ( -> ...Re1+)} 29. Qd2 {[%emt 0:00:44] Inhibits Re1+.} (29. Nd2 {was worth a try.}) 29... Re2 {[%emt 0:01:03]} 30. Qc1 {[%emt 0:00:13] [#]} Bh6 $1 {[%emt 0:05:49][%mdl 512]} 31. Qb1 {[%emt 0:01:26]} Qe5 {[%emt 0:00:27]} 32. d6 {[%emt 0:00:50]} (32. Rf1 $142) 32... Qf4 {[%emt 0:00:21]} 33. f3 {[%emt 0:01:07]} (33. Rf1 $19 Qxd6 34. Nc1) 33... Qg5 {[%emt 0:00:49] Weighted Error Value: White=0.61/Black=0.24 (precise)} 0-1

[Event "34th Pula Open 2022"]
[Site "Pula"]
[Date "2022.06.18"]
[Round "1.8"]
[White "Jahncke, Giso"]
[Black "Striskova, Lucia"]
[Result "1-0"]
[ECO "A89"]
[WhiteElo "2321"]
[BlackElo "1923"]
[Annotator "TA"]
[PlyCount "91"]
[EventDate "2022.06.18"]
[EventType "swiss"]
[EventCountry "CRO"]
[SourceTitle "playchess.com"]
[Source "ChessBase"]
[SourceQuality "1"]
[TimeControl "5400+30"]

{[%evp 17,91,47,33,20,60,57,75,46,70,33,47,13,16,0,0,0,0,0,0,-27,-3,-6,0,-5,16,16,23,13,17,0,25,0,9,3,32,32,46,44,185,175,495,483,477,484,475,463,556,550,518,520,520,500,750,746,876,854,935,935,930,911,784,468,453,425,425,390,407,388,379,381,383,378,424,370,407,395]} 1. c4 {[%emt 0:00:03]} f5 {[%emt 0:00:16]} 2. g3 {[%emt 0:00:16]} Nf6 {[%emt 0:00:14]} 3. Bg2 {[%emt 0:00:17]} d6 {[%emt 0:00:37]} 4. d4 {[%emt 0:00:29]} g6 {[%emt 0:00:24]} 5. Nf3 {[%emt 0:00:13]} Bg7 {[%emt 0:00:50]} 6. O-O {[%emt 0:00:09]} O-O {[%emt 0:00:17]} 7. Nc3 {[%emt 0:00:06]} Nc6 {[%emt 0:01:52]} 8. d5 {[%emt 0:00:09]} Ne5 {[%emt 0:00:05] The main line 8...Ne5 scores better than 8...Na5.} 9. Nxe5 {[%emt 0:00:27]} dxe5 {[%emt 0:00:08]} 10. f3 {[%emt 0:05:44] [#] A89: Dutch Defence: Leningrad System: 5 Nf3 0-0 6 0-0 d6 7 Nc3 Nc6.} Nd7 $146 {[%emt 0:07:19][%cal Oe7e6]} ({Predecessor:} 10... e6 11. e4 Qe7 12. Qe2 f4 13. g4 exd5 14. Nxd5 Qc5+ 15. Qf2 Qd6 16. Bd2 b6 17. Bb4 c5 {1-0 (61) Gandrud,V (2211)-Haug,J (2339) Fagernes 2015}) 11. e4 {[%emt 0:02:00]} f4 12. Rb1 {[%emt 0:07:11] White is better.} a5 {[%emt 0:03:11]} 13. a3 {[%emt 0:01:02]} g5 {[%emt 0:01:00]} 14. g4 {[%emt 0:00:55]} Nf6 {[%emt 0:05:44]} 15. b4 {[%emt 0:01:13]} axb4 {[%emt 0:01:09]} 16. axb4 {[%emt 0:00:05]} h5 {[%emt 0:06:22][%cal Rh5g4]} 17. h3 {[%emt 0:00:12]} e6 {[%emt 0:07:12]} 18. Qe2 {[%emt 0:05:52]} Qe7 {[%emt 0:01:38]} 19. Bd2 {[%emt 0:05:00]} Bd7 {[%emt 0:01:48]} 20. Rfc1 {[%emt 0:01:49]} Rfd8 {[%emt 0:02:24]} 21. Be1 {[%emt 0:00:52]} Be8 {[%emt 0:02:22]} 22. Bf2 {[%emt 0:02:23]} Bf8 {[%emt 0:03:13]} 23. Qb2 {[%emt 0:02:30]} hxg4 {[%emt 0:06:59]} 24. hxg4 {[%emt 0:00:11]} exd5 {[%emt 0:02:19]} 25. cxd5 {[%emt 0:00:17]} c6 {[%emt 0:01:28]} 26. dxc6 {[%emt 0:08:22]} Bxc6 {[%emt 0:01:37]} 27. Bf1 {[%emt 0:01:40]} Be8 {[%emt 0:01:43] [#] Loses the game.} (27... Qe6 $14) 28. Nb5 $1 $18 {[%emt 0:06:12]} Bf7 $2 {[%emt 0:03:03]} (28... Bxb5 29. Bxb5 Ne8 30. Bc4+ Kg7) 29. Bc5 {[%emt 0:02:45]} Qd7 {[%emt 0:04:01][%cal Of6e4]} 30. Qxe5 {[%emt 0:03:56] Strongly threatening Bxf8.} Bg7 {[%emt 0:02:09]} 31. Bd4 {[%emt 0:08:59][%cal Bc5d4,Bd4g7,Bg7f6][%mdl 32]} ({Not} 31. Qxg5 Qd2 $18) 31... Ba2 {[%emt 0:07:56]} 32. Rb2 {[%emt 0:09:32]} ({Less strong is} 32. Qxg5 Nh7 33. Qxg7+ Qxg7 34. Bxg7 Bxb1 $18) 32... Nxe4 {[%emt 0:05:19]} 33. Qxg7+ {[%emt 0:01:12]} Qxg7 {[%emt 0:00:09]} 34. Bxg7 {[%emt 0:00:05] A strong pair of Bishops.} Nd2 {[%emt 0:01:37]} 35. Bf6 {[%emt 0:06:23][%csl LRd8,LRg5]} Nxf3+ {[%emt 0:00:59]} 36. Kf2 {[%emt 0:00:45]} Rd2+ {[%emt 0:00:07]} 37. Rxd2 {[%emt 0:00:19]} Nxd2 {[%emt 0:00:05]} 38. Bd3 {[%emt 0:01:49]} Bd5 {[%emt 0:02:40]} 39. Rc2 {[%emt 0:01:41]} Ne4+ {[%emt 0:00:32]} 40. Bxe4 {[%emt 0:00:13]} Bxe4 {[%emt 0:00:09]} 41. Rd2 {[%emt 0:01:37]} Bc6 {[%emt 0:01:39]} 42. Nd4 {[%emt 0:00:35]} Bd7 {[%emt 0:02:03]} 43. Bxg5 {[%emt 0:00:12]} Bxg4 {[%emt 0:00:18]} 44. Bxf4 {[%emt 0:00:06]} Ra3 {[%emt 0:02:24]} 45. Be3 {[%emt 0:00:14]} Kf7 {[%emt 0:01:16]} 46. Rc2 {[%emt 0:00:25] Weighted Error Value: White=0.17 (very precise) /Black=0.33} 1-0

[Event "34th Pula Open 2022"]
[Site "Pula"]
[Date "2022.06.18"]
[Round "1.9"]
[White "Bonaca, Dario"]
[Black "Pastar, Slaven"]
[Result "0-1"]
[ECO "A47"]
[WhiteElo "1910"]
[BlackElo "2300"]
[Annotator "TA"]
[PlyCount "76"]
[EventDate "2022.06.18"]
[EventType "swiss"]
[EventCountry "CRO"]
[SourceTitle "playchess.com"]
[Source "ChessBase"]
[SourceQuality "1"]
[TimeControl "5400+30"]

{[%evp 14,76,-20,-16,-22,-15,0,0,44,40,42,0,8,-2,10,-26,58,-9,0,-91,-87,-99,-56,-55,-29,-43,-54,-151,-167,-167,-150,-195,-91,-116,-135,-156,-148,-142,-162,-196,-154,-135,-162,-162,-148,-351,-350,-338,-345,-345,-335,-348,-311,-358,-358,-360,-355,-501,-482,-570,-566,-931,-909,-808,-780]} 1. d4 {[%emt 0:00:04]} e6 {[%emt 0:00:05]} 2. Bf4 {[%emt 0:00:21]} Nf6 {[%emt 0:00:15]} 3. e3 {[%emt 0:00:18]} b6 {[%emt 0:00:15]} 4. Nf3 {[%emt 0:00:11]} Be7 {[%emt 0:00:25]} 5. Nbd2 {[%emt 0:09:25]} Nh5 {[%emt 0:01:58]} 6. Bg3 {[%emt 0:00:13]} Bb7 {[%emt 0:00:26]} 7. Bd3 {[%emt 0:05:34]} d6 {[%emt 0:00:16]} 8. Qe2 {[%emt 0:04:18]} Nd7 {[%emt 0:00:54] A47: 1 d4 Nf6 2 Nf3 b6: Torre, London and Colle Systems.} 9. Ba6 {[%emt 0:17:07] [#]} Nxg3 $146 {[%emt 0:01:39]} ({Predecessor:} 9... Bxa6 10. Qxa6 c5 11. dxc5 Nxg3 12. hxg3 bxc5 13. Nc4 Qc7 14. e4 O-O 15. Rd1 Nb6 16. Nxb6 axb6 {0-1 (41) Derakhshani,B (2236)-Huber,M (2393) Graz 2017}) 10. hxg3 {[%emt 0:00:07]} Qc8 {[%emt 0:00:17] The position is equal.} 11. Bxb7 {[%emt 0:00:09]} Qxb7 {[%emt 0:00:06]} 12. Qd3 {[%emt 0:05:25]} g6 {[%emt 0:04:54]} 13. O-O-O {[%emt 0:05:03]} b5 {[%emt 0:01:53]} 14. Qe4 {[%emt 0:00:41]} c6 {[%emt 0:04:38]} (14... Qxe4 $11 15. Nxe4 d5) 15. Rh3 {[%emt 0:02:26]} (15. Qf4 $14) 15... h5 $11 {[%emt 0:03:24]} 16. Rdh1 {[%emt 0:06:41]} (16. Qf4 $1 $11) 16... Nf6 $17 {[%emt 0:01:33]} 17. Qd3 {[%emt 0:00:20]} Kf8 {[%emt 0:02:20]} 18. Ne4 {[%emt 0:05:18]} Ng4 {[%emt 0:00:52]} 19. Qe2 {[%emt 0:00:47]} Kg7 {[%emt 0:02:26]} 20. Nfg5 {[%emt 0:04:59]} (20. Nfd2 $15) 20... c5 {[%emt 0:01:16]} 21. f3 {[%emt 0:00:49]} Nh6 {[%emt 0:02:13]} 22. dxc5 {[%emt 0:03:33] [#]} dxc5 {[%emt 0:02:43]} (22... d5 $1 $19 {has better winning chances.} 23. Nd6 Qa6) 23. g4 {[%emt 0:04:28] [#]} hxg4 {[%emt 0:01:38]} 24. fxg4 {[%emt 0:00:15]} Qd5 {[%emt 0:02:34][%csl LRa2,LRg5]} 25. Qd3 {[%emt 0:02:13]} b4 {[%emt 0:08:15] Against Qc3+. Strongly threatening ...Rad8.} (25... Bxg5 26. Qxd5 Bxe3+ 27. Qd2 Bxd2+ 28. Kxd2 $15) 26. Kb1 {[%emt 0:07:11]} ({Avoid the trap} 26. Qxd5 $2 exd5 27. Rg3 Rad8 $19) 26... Bxg5 {[%emt 0:09:02] Dancing on a razor blade.} 27. Qxd5 {[%emt 0:00:37]} exd5 {[%emt 0:00:09]} 28. Nxg5 {[%emt 0:00:06]} Nxg4 {[%emt 0:01:34] Hoping for ...Rxh3.} 29. Rh7+ {[%emt 0:05:27] This costs White the game.} (29. Nxf7 $17 Rxh3 30. gxh3) 29... Rxh7 $19 {[%emt 0:00:11]} 30. Rxh7+ {[%emt 0:00:07][%mdl 4096] Endgame KRN-KRN} Kf6 {[%emt 0:00:42]} 31. Nxf7 {[%emt 0:00:14]} Rf8 {[%emt 0:01:58]} (31... Nxe3 $2 32. Nd6 $19) 32. Nh6 {[%emt 0:00:48]} Nxe3 {[%emt 0:00:42]} 33. a3 {[%emt 0:00:44]} bxa3 {[%emt 0:03:53]} (33... Nxg2 $2 34. axb4 cxb4 35. Ng4+ Kf5 36. Nh6+ Kg5 37. Ka2 $19) 34. bxa3 {[%emt 0:00:08]} a5 {[%emt 0:05:01]} ({But not} 34... Nxg2 $2 35. Ng4+ Kf5 36. Rh2 $19) 35. g3 {[%emt 0:01:13]} (35. Kc1 {was worth a try.}) 35... g5 {[%emt 0:01:11] ...Kg6 is the strong threat. Black is clearly winning.} 36. Ra7 {[%emt 0:02:30]} Kg6 {[%emt 0:01:14]} 37. Re7 {[%emt 0:02:01]} d4 {[%emt 0:00:53]} ({Not} 37... Kxh6 38. Rxe3 Kg6 39. Kb2 $17) 38. Re6+ {[%emt 0:00:44]} Rf6 {[%emt 0:00:36] Weighted Error Value: White=0.49/Black=0.14 (very precise)} 0-1

[Event "34th Pula Open 2022"]
[Site "Pula"]
[Date "2022.06.18"]
[Round "1.10"]
[White "Maier, Christian"]
[Black "Kulenovic, Adnan"]
[Result "1-0"]
[ECO "D94"]
[WhiteElo "2299"]
[BlackElo "1923"]
[Annotator "TA"]
[PlyCount "97"]
[EventDate "2022.06.18"]
[EventType "swiss"]
[EventCountry "CRO"]
[SourceTitle "playchess.com"]
[Source "ChessBase"]
[SourceQuality "1"]
[TimeControl "5400+30"]

{[%evp 9,97,24,38,18,17,17,39,30,38,33,58,58,58,61,63,5,69,56,66,78,136,143,141,125,139,144,142,120,127,73,70,47,83,82,91,86,120,103,96,98,95,95,108,105,108,94,87,91,101,60,86,73,97,79,102,78,98,67,102,72,73,73,99,8,8,15,44,16,28,8,438,425,401,395,658,660,654,635,610,457,566,529,521,458,441,437,669,648,685,658]} 1. Nf3 {[%emt 0:01:43]} d5 {[%emt 0:02:38]} 2. c4 {[%emt 0:01:35]} e6 {[%emt 0:01:33]} 3. e3 {[%emt 0:00:28]} g6 {[%emt 0:02:42]} 4. Nc3 {[%emt 0:01:43]} Bg7 {[%emt 0:01:04]} 5. d4 {[%emt 0:00:36]} Nf6 {[%emt 0:01:15]} 6. b4 {[%emt 0:01:34][%cal Bb2b4,Bb4b5][%mdl 32] D94: Grünfeld: 4 Nf3 Bg7 5 e3.} O-O {[%emt 0:02:20]} 7. Bb2 {[%emt 0:00:13]} Nc6 {[%emt 0:02:37]} 8. Qb3 {[%emt 0:02:17] [#] White is slightly better.} a5 $146 {[%emt 0:04:37]} ({Predecessor:} 8... Ne7 9. c5 c6 10. a4 Nd7 11. Bd3 e5 12. dxe5 Nxe5 13. Nxe5 Bxe5 14. Ne2 Bxb2 15. Qxb2 {1-0 (45) Santiago,Y (2378)-Utiyama,M (2145) Sao Jose do Rio Preto 2012}) 9. b5 {[%emt 0:01:04]} Ne7 {[%emt 0:00:52]} 10. Rc1 {[%emt 0:01:13]} c6 {[%emt 0:02:32][%cal Oa5a4]} 11. Ba3 {[%emt 0:00:26]} Re8 {[%emt 0:01:24]} 12. Ne5 {[%emt 0:01:34]} (12. Bd3 $14) 12... Bd7 {[%emt 0:07:13]} ({Black should play} 12... Nd7 $11) 13. Be2 {[%emt 0:00:16]} a4 {[%emt 0:02:14]} 14. Qb2 {[%emt 0:00:59] 0x0.00166cebde06dp-1022s more active pieces.} g5 {[%emt 0:02:23]} (14... dxc4 $142 15. Nxc4 (15. Bxc4 Ned5 $14) 15... Ned5) 15. O-O $16 {[%emt 0:00:32]} Ng6 {[%emt 0:01:20]} 16. Rcd1 {[%emt 0:05:06]} Qb8 {[%emt 0:05:39]} 17. Nxd7 {[%emt 0:06:24]} Nxd7 {[%emt 0:00:09]} 18. bxc6 {[%emt 0:00:08]} bxc6 {[%emt 0:00:23]} 19. Qxb8 {[%emt 0:03:07]} (19. Qd2 $142) 19... Rexb8 {[%emt 0:00:24]} 20. Bd6 {[%emt 0:00:46] This bishop pair is nice.} Rb7 {[%emt 0:03:32]} 21. Rb1 {[%emt 0:00:15]} Rba7 {[%emt 0:00:14]} 22. cxd5 {[%emt 0:00:22]} exd5 {[%emt 0:01:37]} 23. Rfc1 {[%emt 0:01:17]} Bf8 {[%emt 0:01:52]} 24. Bxf8 {[%emt 0:00:30]} Kxf8 {[%emt 0:00:26]} 25. a3 {[%emt 0:02:40]} Ke7 {[%emt 0:01:10]} 26. Na2 {[%emt 0:02:08]} Kd6 {[%emt 0:00:45]} 27. Nb4 {[%emt 0:00:08]} Ne7 {[%emt 0:01:29]} 28. Nd3 {[%emt 0:01:06]} Ra5 {[%emt 0:04:39]} 29. f3 {[%emt 0:01:33]} R8a7 {[%emt 0:03:01]} 30. Kf2 {[%emt 0:00:13]} f6 {[%emt 0:06:58]} 31. Rb4 {[%emt 0:08:26]} Nc8 {[%emt 0:03:20]} 32. e4 {[%emt 0:03:01] Strongly threatening exd5.} Ne7 {[%emt 0:04:17]} 33. g4 {[%emt 0:11:36]} Ng6 {[%emt 0:01:01]} 34. Kg3 {[%emt 0:01:19]} Rc7 {[%emt 0:04:07]} 35. Bd1 {[%emt 0:03:23]} c5 {[%emt 0:02:04]} 36. Rxa4 {[%emt 0:01:41]} (36. dxc5+ $16 Nxc5 37. Rb6+ Kd7 38. Nxc5+ (38. Rxf6 dxe4 39. Rf7+ Ne7 $16) 38... Rcxc5 39. Rxc5 Rxc5 40. exd5 (40. Bxa4+ Kc7 $16) (40. Rxf6 dxe4 41. fxe4 Ke7 $11)) 36... Rxa4 $11 {[%emt 0:03:21]} 37. Bxa4 {[%emt 0:00:08]} c4 {[%emt 0:00:51]} 38. Bxd7 {[%emt 0:03:30]} Rxd7 $14 {[%emt 0:06:49][%mdl 4096] Endgame KRN-KRN} 39. Nb4 {[%emt 0:00:15]} Ra7 $2 {[%emt 0:01:05][%mdl 8192] [#] Loses the game.} (39... Nf4 $11 {and Black has nothing to worry.} 40. Kf2 Ra7) 40. Nxd5 $18 {[%emt 0:02:03]} Rxa3 {[%emt 0:00:25]} 41. Rxc4 {[%emt 0:00:19]} Nh4 $2 {[%emt 0:00:21]} (41... Rd3 42. Nxf6 Nh4 43. e5+ Ke6 44. Rc6+ Kf7) 42. Rc3 {[%emt 0:00:05] White is clearly winning.} Ra2 {[%emt 0:00:55]} 43. Nxf6 {[%emt 0:00:13]} Ng6 {[%emt 0:01:49] [#] And now ...Nf4 would win.} 44. Nd5 {[%emt 0:02:08] Against Nf4} Rd2 {[%emt 0:01:00]} 45. Ra3 {[%emt 0:10:47]} Rxd4 {[%emt 0:00:34]} 46. Ra6+ {[%emt 0:00:33]} Ke5 {[%emt 0:00:20]} 47. Nf6 {[%emt 0:00:43]} Nf4 {[%emt 0:00:54]} (47... Nf8 $142 48. Nh5 Rd3 49. Ra5+ Kd6) 48. Nxh7 {[%emt 0:00:17]} Ne2+ {[%emt 0:05:05]} 49. Kf2 {[%emt 0:00:16] Weighted Error Value: White=0.20 (precise) /Black=0.42} 1-0